[Event "*** Titled Tuesday Blitz"]
[Site "Chess.com"]
[Date "2020.04.28"]
[Round "1"]
[White "serhanberat_ozdemir"]
[Black "pirulillo"]
[Result "1-0"]
[WhiteElo "2517"]
[BlackElo "2138"]
[TimeControl "180+1"]
[EndTime "10:07:04 PDT"]
[Termination "serhanberat_ozdemir won by resignation"]

1. e4 {[%clk 0:03:00.8]} 1... c5 {[%clk 0:02:58.6]} 2. Nf3 {[%clk 0:03:01]} 2...
e6 {[%clk 0:02:58]} 3. c3 {[%clk 0:03:01.1]} 3... Nf6 {[%clk 0:02:52.7]} 4. e5
{[%clk 0:02:59.6]} 4... Nd5 {[%clk 0:02:52.7]} 5. d4 {[%clk 0:03:00.1]} 5...
cxd4 {[%clk 0:02:52.6]} 6. cxd4 {[%clk 0:03:01]} 6... Nc6 {[%clk 0:02:49.3]} 7.
a3 {[%clk 0:03:00.1]} 7... d6 {[%clk 0:02:48.9]} 8. Bd3 {[%clk 0:02:59.4]} 8...
Be7 {[%clk 0:02:26.2]} 9. O-O {[%clk 0:02:48.7]} 9... O-O {[%clk 0:02:23.9]} 10.
Qe2 {[%clk 0:02:44.2]} 10... Qb6 {[%clk 0:01:53.6]} 11. Qe4 {[%clk 0:02:34.8]}
11... f5 {[%clk 0:01:52]} 12. exf6 {[%clk 0:02:34.5]} 12... Nxf6 {[%clk
0:01:51.8]} 13. Qh4 {[%clk 0:02:32.9]} 13... e5 {[%clk 0:01:07.3]} 14. dxe5
{[%clk 0:02:08.7]} 14... dxe5 {[%clk 0:01:08.2]} 15. Bc4+ {[%clk 0:02:07.7]}
15... Kh8 {[%clk 0:01:07.3]} 16. Ng5 {[%clk 0:02:05.3]} 16... Nd8 {[%clk
0:01:02.3]} 17. Nc3 {[%clk 0:01:57.5]} 17... Qd4 {[%clk 0:01:00.8]} 18. Qxd4
{[%clk 0:01:26.3]} 18... exd4 {[%clk 0:01:01.7]} 19. Nd5 {[%clk 0:01:24.8]}
19... Nxd5 {[%clk 0:00:51.5]} 20. Bxd5 {[%clk 0:01:25.6]} 20... Rf5 {[%clk
0:00:46.7]} 21. Re1 {[%clk 0:01:19.7]} 21... Bf8 {[%clk 0:00:20.6]} 22. Be4
{[%clk 0:01:03.3]} 22... Rf6 {[%clk 0:00:18.1]} 23. Nxh7 {[%clk 0:01:01.4]}
23... Ne6 {[%clk 0:00:14.7]} 24. Nxf6 {[%clk 0:01:00.3]} 24... gxf6 {[%clk
0:00:15.6]} 25. Bf5 {[%clk 0:01:00.6]} 25... Ng7 {[%clk 0:00:13.7]} 26. Bxc8
{[%clk 0:01:00]} 26... Rxc8 {[%clk 0:00:13.5]} 27. Bh6 {[%clk 0:00:59.5]} 27...
Bc5 {[%clk 0:00:13]} 28. b4 {[%clk 0:00:45.2]} 28... Bb6 {[%clk 0:00:12.5]} 29.
Rac1 {[%clk 0:00:45.4]} 29... Rd8 {[%clk 0:00:11.7]} 30. Bxg7+ {[%clk
0:00:45.5]} 30... Kxg7 {[%clk 0:00:11.6]} 31. Kf1 {[%clk 0:00:42.3]} 31... d3
{[%clk 0:00:10.8]} 32. Red1 {[%clk 0:00:42.7]} 32... Kg6 {[%clk 0:00:09.8]} 33.
Rd2 {[%clk 0:00:42.1]} 33... Kf5 {[%clk 0:00:09]} 34. Rcd1 {[%clk 0:00:38.4]}
34... Ke5 {[%clk 0:00:09.3]} 35. Rxd3 {[%clk 0:00:38.3]} 35... Rxd3 {[%clk
0:00:08.5]} 36. Rxd3 {[%clk 0:00:39.2]} 1-0

[Event "*** Titled Tuesday Blitz"]
[Site "Chess.com"]
[Date "2020.04.28"]
[Round "1"]
[White "Phenix2k"]
[Black "KhamzinOlzhas"]
[Result "1-0"]
[WhiteElo "2300"]
[BlackElo "2517"]
[TimeControl "180+1"]
[EndTime "10:07:05 PDT"]
[Termination "Phenix2k won by checkmate"]

1. d4 {[%clk 0:03:00.9]} 1... d5 {[%clk 0:02:59]} 2. Nf3 {[%clk 0:03:00.8]} 2...
Nf6 {[%clk 0:02:58.7]} 3. g3 {[%clk 0:03:00.8]} 3... Bf5 {[%clk 0:02:57.1]} 4.
Bg2 {[%clk 0:03:00.6]} 4... h6 {[%clk 0:02:57.7]} 5. c4 {[%clk 0:03:00.5]} 5...
e6 {[%clk 0:02:57.7]} 6. Nc3 {[%clk 0:03:00.7]} 6... c6 {[%clk 0:02:57.8]} 7.
Qb3 {[%clk 0:03:00.8]} 7... Qb6 {[%clk 0:02:56.3]} 8. c5 {[%clk 0:03:01.1]} 8...
Qxb3 {[%clk 0:02:56.5]} 9. axb3 {[%clk 0:03:02]} 9... Na6 {[%clk 0:02:43.9]} 10.
Ra4 {[%clk 0:02:46.8]} 10... Nc7 {[%clk 0:02:28]} 11. Bf4 {[%clk 0:02:38.7]}
11... Nb5 {[%clk 0:02:27.8]} 12. Nxb5 {[%clk 0:02:28.6]} 12... cxb5 {[%clk
0:02:28.7]} 13. Ra3 {[%clk 0:02:19.6]} 13... Nd7 {[%clk 0:02:20.1]} 14. b4
{[%clk 0:02:17.8]} 14... g5 {[%clk 0:02:15]} 15. Bd2 {[%clk 0:02:09.9]} 15...
Nb8 {[%clk 0:02:06.3]} 16. O-O {[%clk 0:02:06.7]} 16... f6 {[%clk 0:02:05.9]}
17. Rfa1 {[%clk 0:02:02.9]} 17... Nc6 {[%clk 0:02:04.7]} 18. Bc3 {[%clk
0:02:01]} 18... Be4 {[%clk 0:01:56.8]} 19. Nd2 {[%clk 0:01:59.6]} 19... Bxg2
{[%clk 0:01:56.7]} 20. Kxg2 {[%clk 0:01:59.8]} 20... Kd7 {[%clk 0:01:56.2]} 21.
e4 {[%clk 0:01:53]} 21... f5 {[%clk 0:01:47.9]} 22. f3 {[%clk 0:01:50.8]} 22...
Bg7 {[%clk 0:01:47.2]} 23. e5 {[%clk 0:01:46.9]} 23... f4 {[%clk 0:01:41.5]} 24.
gxf4 {[%clk 0:01:39]} 24... gxf4 {[%clk 0:01:42.4]} 25. Nb3 {[%clk 0:01:36.3]}
25... a6 {[%clk 0:01:41]} 26. Kf2 {[%clk 0:01:32.8]} 26... Rag8 {[%clk
0:01:40.2]} 27. Rg1 {[%clk 0:01:32.2]} 27... Bf8 {[%clk 0:01:40.3]} 28. Raa1
{[%clk 0:01:31.4]} 28... Rg5 {[%clk 0:01:34]} 29. h4 {[%clk 0:01:30.7]} 29...
Rh5 {[%clk 0:01:30.1]} 30. Rg4 {[%clk 0:01:28.1]} 30... Ne7 {[%clk 0:01:13.7]}
31. Na5 {[%clk 0:01:17.1]} 31... Nf5 {[%clk 0:01:10.9]} 32. Nxb7 {[%clk
0:01:13.3]} 32... Be7 {[%clk 0:01:01]} 33. Rxa6 {[%clk 0:01:07.3]} 33... Bxh4+
{[%clk 0:01:00.4]} 34. Ke2 {[%clk 0:01:06.5]} 34... Bg5 {[%clk 0:00:58.5]} 35.
Nd6 {[%clk 0:00:56.2]} 35... Ne3 {[%clk 0:00:38.3]} 36. Rg1 {[%clk 0:00:44.9]}
36... Rh2+ {[%clk 0:00:37.7]} 37. Kd3 {[%clk 0:00:44.5]} 37... Nc4 {[%clk
0:00:26.2]} 38. Ra7+ {[%clk 0:00:41.1]} 38... Kc6 {[%clk 0:00:21.5]} 39. Rga1
{[%clk 0:00:38.5]} 39... Rd2+ {[%clk 0:00:08.2]} 40. Bxd2 {[%clk 0:00:37.4]}
40... Nxb2+ {[%clk 0:00:09.1]} 41. Kc2 {[%clk 0:00:34.2]} 41... Na4 {[%clk
0:00:10]} 42. R1xa4 {[%clk 0:00:32.3]} 42... bxa4 {[%clk 0:00:10.9]} 43. b5#
{[%clk 0:00:32.5]} 1-0

[Event "*** Titled Tuesday Blitz"]
[Site "Chess.com"]
[Date "2020.04.28"]
[Round "1"]
[White "pma83"]
[Black "bait_or_mate"]
[Result "1-0"]
[WhiteElo "2233"]
[BlackElo "2541"]
[TimeControl "180+1"]
[EndTime "10:07:05 PDT"]
[Termination "pma83 won by resignation"]

1. d4 {[%clk 0:02:56.1]} 1... Nf6 {[%clk 0:02:59.5]} 2. c4 {[%clk 0:02:55.6]}
2... e6 {[%clk 0:02:58.6]} 3. Nc3 {[%clk 0:02:55.6]} 3... Bb4 {[%clk 0:02:57.5]}
4. e3 {[%clk 0:02:54.6]} 4... O-O {[%clk 0:02:54.5]} 5. Ne2 {[%clk 0:02:52.8]}
5... Re8 {[%clk 0:02:53.5]} 6. a3 {[%clk 0:02:52.9]} 6... Bf8 {[%clk 0:02:47.5]}
7. Ng3 {[%clk 0:02:51.9]} 7... d5 {[%clk 0:02:43.1]} 8. cxd5 {[%clk 0:02:44.4]}
8... exd5 {[%clk 0:02:42]} 9. Bd3 {[%clk 0:02:44.2]} 9... c6 {[%clk 0:02:32.8]}
10. O-O {[%clk 0:02:43.7]} 10... a5 {[%clk 0:02:31.9]} 11. Na4 {[%clk
0:02:35.9]} 11... Na6 {[%clk 0:02:30.1]} 12. Qc2 {[%clk 0:02:21.5]} 12... g6
{[%clk 0:02:21.3]} 13. Bd2 {[%clk 0:02:19.3]} 13... h5 {[%clk 0:02:15.7]} 14. h3
{[%clk 0:02:14.1]} 14... Bd6 {[%clk 0:02:09.8]} 15. Bxg6 {[%clk 0:01:46.1]}
15... fxg6 {[%clk 0:02:09.1]} 16. Qxg6+ {[%clk 0:01:47]} 16... Kh8 {[%clk
0:02:04.4]} 17. Nxh5 {[%clk 0:01:45.2]} 17... Nxh5 {[%clk 0:01:59.5]} 18. Qxh5+
{[%clk 0:01:46.1]} 18... Kg7 {[%clk 0:01:54.2]} 19. e4 {[%clk 0:01:29.3]} 19...
Rh8 {[%clk 0:01:46.8]} 20. Qf3 {[%clk 0:01:26.3]} 20... dxe4 {[%clk 0:01:40.7]}
21. Qxe4 {[%clk 0:01:27.2]} 21... Qf6 {[%clk 0:01:40.9]} 22. Bc3 {[%clk
0:01:17.7]} 22... Bf5 {[%clk 0:01:34.5]} 23. Qf3 {[%clk 0:01:05.9]} 23... Rae8
{[%clk 0:01:29]} 24. Rae1 {[%clk 0:01:04.9]} 24... Bc2 {[%clk 0:01:06.6]} 25. d5
{[%clk 0:01:01.7]} 25... Be5 {[%clk 0:01:04.3]} 26. Rxe5 {[%clk 0:00:55.4]}
26... Rxe5 {[%clk 0:00:58.1]} 27. Qg3+ {[%clk 0:00:53.3]} 27... Kf7 {[%clk
0:00:52.8]} 28. Bxe5 {[%clk 0:00:52.9]} 28... Qf5 {[%clk 0:00:34.3]} 29. Bxh8
{[%clk 0:00:50.7]} 29... Bxa4 {[%clk 0:00:34.4]} 30. Qg7+ {[%clk 0:00:48.9]}
30... Ke8 {[%clk 0:00:32.7]} 31. Qg8+ {[%clk 0:00:46.6]} 31... Kd7 {[%clk
0:00:32.2]} 32. Qe6+ {[%clk 0:00:43.1]} 32... Qxe6 {[%clk 0:00:30.9]} 33. dxe6+
{[%clk 0:00:44]} 33... Kxe6 {[%clk 0:00:31.8]} 34. Bc3 {[%clk 0:00:44.8]} 34...
b6 {[%clk 0:00:30.6]} 35. f4 {[%clk 0:00:42.7]} 35... Nc5 {[%clk 0:00:29]} 36.
f5+ {[%clk 0:00:42]} 36... Kf7 {[%clk 0:00:28.6]} 37. g4 {[%clk 0:00:41.4]}
37... Ne4 {[%clk 0:00:28]} 38. Rf4 {[%clk 0:00:40]} 38... Ng5 {[%clk 0:00:27.3]}
39. Kg2 {[%clk 0:00:39.4]} 39... Bb3 {[%clk 0:00:26.8]} 40. h4 {[%clk
0:00:38.5]} 40... Bd5+ {[%clk 0:00:26.7]} 41. Kh2 {[%clk 0:00:34]} 41... Nf3+
{[%clk 0:00:26.5]} 42. Kg3 {[%clk 0:00:33.4]} 42... Ng1 {[%clk 0:00:26]} 43. Rf2
{[%clk 0:00:31.5]} 1-0

[Event "*** Titled Tuesday Blitz"]
[Site "Chess.com"]
[Date "2020.04.28"]
[Round "1"]
[White "UmutErdemGunduz"]
[Black "GMSrinath"]
[Result "0-1"]
[WhiteElo "2388"]
[BlackElo "2738"]
[TimeControl "180+1"]
[EndTime "10:07:07 PDT"]
[Termination "GMSrinath won by resignation"]

1. e4 {[%clk 0:03:00.5]} 1... c5 {[%clk 0:02:58.8]} 2. Nf3 {[%clk 0:02:59.8]}
2... Nc6 {[%clk 0:02:58.1]} 3. d4 {[%clk 0:02:59.8]} 3... cxd4 {[%clk
0:02:57.2]} 4. Nxd4 {[%clk 0:03:00.7]} 4... Nf6 {[%clk 0:02:57.9]} 5. Nc3 {[%clk
0:03:00.8]} 5... d6 {[%clk 0:02:57.7]} 6. Bg5 {[%clk 0:02:59.9]} 6... e6 {[%clk
0:02:57.9]} 7. f4 {[%clk 0:02:58.3]} 7... h6 {[%clk 0:02:47]} 8. Bh4 {[%clk
0:02:45]} 8... Qb6 {[%clk 0:02:46.7]} 9. Bf2 {[%clk 0:02:35.1]} 9... Qxb2 {[%clk
0:02:45.7]} 10. Ndb5 {[%clk 0:02:25.8]} 10... Qb4 {[%clk 0:02:45.6]} 11. Rb1
{[%clk 0:02:01.4]} 11... Qa5 {[%clk 0:02:45.1]} 12. Bd3 {[%clk 0:01:43.3]} 12...
a6 {[%clk 0:02:42.2]} 13. Bb6 {[%clk 0:01:37.5]} 13... Qxb6 {[%clk 0:02:33.6]}
14. Nxd6+ {[%clk 0:01:37.9]} 14... Bxd6 {[%clk 0:02:34.5]} 15. Rxb6 {[%clk
0:01:38.6]} 15... Bxf4 {[%clk 0:02:35.4]} 16. Qe2 {[%clk 0:01:20.8]} 16... O-O
{[%clk 0:02:25.8]} 17. O-O {[%clk 0:01:17]} 17... Be5 {[%clk 0:02:25.5]} 18.
Rxc6 {[%clk 0:01:08.3]} 18... bxc6 {[%clk 0:02:25]} 19. Na4 {[%clk 0:01:08.9]}
19... Rb8 {[%clk 0:02:21.9]} 20. c3 {[%clk 0:01:08]} 20... a5 {[%clk 0:02:21]}
21. Qc2 {[%clk 0:01:02.2]} 21... Rd8 {[%clk 0:02:16.2]} 22. Rd1 {[%clk
0:01:00.6]} 22... Bd7 {[%clk 0:02:11.7]} 23. Bf1 {[%clk 0:00:56.2]} 23... Be8
{[%clk 0:02:06.3]} 24. Rxd8 {[%clk 0:00:53.1]} 24... Rxd8 {[%clk 0:02:07.2]} 25.
Nb6 {[%clk 0:00:54]} 25... Bd6 {[%clk 0:02:03.9]} 26. Nc4 {[%clk 0:00:53.2]}
26... Bc5+ {[%clk 0:02:03.9]} 27. Kh1 {[%clk 0:00:53.3]} 27... Ng4 {[%clk
0:01:41.7]} 28. h3 {[%clk 0:00:49.5]} 28... Ne3 {[%clk 0:01:42.2]} 29. Nxe3
{[%clk 0:00:47.1]} 29... Bxe3 {[%clk 0:01:43.1]} 30. e5 {[%clk 0:00:48]} 30...
c5 {[%clk 0:01:40.3]} 31. Qe4 {[%clk 0:00:48.1]} 31... Bc1 {[%clk 0:01:38.4]}
32. Bd3 {[%clk 0:00:47.6]} 32... g6 {[%clk 0:01:37.9]} 33. h4 {[%clk 0:00:47.2]}
33... h5 {[%clk 0:01:37.4]} 34. g4 {[%clk 0:00:45.7]} 34... hxg4 {[%clk
0:01:37.3]} 35. h5 {[%clk 0:00:46]} 35... Bh6 {[%clk 0:01:15.3]} 36. hxg6 {[%clk
0:00:45.5]} 36... fxg6 {[%clk 0:01:16.2]} 37. Qxg4 {[%clk 0:00:45.7]} 37... Rxd3
{[%clk 0:01:14.9]} 38. Qxe6+ {[%clk 0:00:44]} 38... Bf7 {[%clk 0:01:15.4]} 39.
Qc8+ {[%clk 0:00:42]} 39... Kg7 {[%clk 0:01:15.2]} 40. e6 {[%clk 0:00:41.2]}
40... Rxc3 {[%clk 0:00:58.6]} 41. Qb7 {[%clk 0:00:36.6]} 41... Rc1+ {[%clk
0:00:56.3]} 42. Kg2 {[%clk 0:00:35.8]} 42... Rc2+ {[%clk 0:00:56.9]} 43. Kf1
{[%clk 0:00:34.3]} 43... Rc1+ {[%clk 0:00:56.1]} 44. Ke2 {[%clk 0:00:34.4]}
44... Rc2+ {[%clk 0:00:56.7]} 45. Ke1 {[%clk 0:00:33.9]} 45... Rc1+ {[%clk
0:00:56.7]} 46. Ke2 {[%clk 0:00:28.6]} 46... Rc2+ {[%clk 0:00:57.2]} 47. Kd3
{[%clk 0:00:26.3]} 47... Rf2 {[%clk 0:00:57.7]} 48. exf7 {[%clk 0:00:20.6]}
48... Rxf7 {[%clk 0:00:58.6]} 49. Qe4 {[%clk 0:00:20.8]} 49... Rd7+ {[%clk
0:00:51.7]} 50. Kc3 {[%clk 0:00:21.1]} 50... Bg5 {[%clk 0:00:49.6]} 51. Qe5+
{[%clk 0:00:21.2]} 51... Bf6 {[%clk 0:00:49.6]} 0-1

[Event "*** Titled Tuesday Blitz"]
[Site "Chess.com"]
[Date "2020.04.28"]
[Round "1"]
[White "Atanejhad"]
[Black "konradrutkowski"]
[Result "1-0"]
[WhiteElo "2526"]
[BlackElo "2168"]
[TimeControl "180+1"]
[EndTime "10:07:07 PDT"]
[Termination "Atanejhad won by resignation"]

1. e4 {[%clk 0:02:59.4]} 1... e5 {[%clk 0:02:58.6]} 2. Nf3 {[%clk 0:02:56.1]}
2... Nc6 {[%clk 0:02:57.6]} 3. Bb5 {[%clk 0:02:56.3]} 3... a6 {[%clk 0:02:53.8]}
4. Ba4 {[%clk 0:02:55.9]} 4... Nf6 {[%clk 0:02:52.9]} 5. O-O {[%clk 0:02:56.1]}
5... Be7 {[%clk 0:02:52.9]} 6. Re1 {[%clk 0:02:56]} 6... b5 {[%clk 0:02:52.3]}
7. Bb3 {[%clk 0:02:56.9]} 7... O-O {[%clk 0:02:52.4]} 8. a4 {[%clk 0:02:55.8]}
8... Bb7 {[%clk 0:02:48.7]} 9. h3 {[%clk 0:02:33.2]} 9... d5 {[%clk 0:02:34.7]}
10. exd5 {[%clk 0:02:32.3]} 10... Nxd5 {[%clk 0:02:35.6]} 11. d3 {[%clk
0:02:29]} 11... Bf6 {[%clk 0:02:27.9]} 12. Nbd2 {[%clk 0:02:25.4]} 12... Nd4
{[%clk 0:02:17.5]} 13. Nxd4 {[%clk 0:02:19.9]} 13... exd4 {[%clk 0:02:18.4]} 14.
Ne4 {[%clk 0:02:20]} 14... Be7 {[%clk 0:02:16.7]} 15. Qh5 {[%clk 0:02:08.1]}
15... Kh8 {[%clk 0:01:59.6]} 16. Bg5 {[%clk 0:01:58.3]} 16... f6 {[%clk
0:01:44]} 17. Bd2 {[%clk 0:01:56.6]} 17... Qd7 {[%clk 0:01:18.6]} 18. Ng3 {[%clk
0:01:45.4]} 18... Rfd8 {[%clk 0:00:57.7]} 19. Re4 {[%clk 0:01:36.7]} 19... g6
{[%clk 0:00:42.1]} 20. Qe2 {[%clk 0:01:16.8]} 20... Re8 {[%clk 0:00:29.1]} 21.
axb5 {[%clk 0:01:04.9]} 21... axb5 {[%clk 0:00:28.8]} 22. Rxa8 {[%clk
0:01:05.8]} 22... Bxa8 {[%clk 0:00:28.7]} 23. Rxd4 {[%clk 0:00:58.7]} 23... Bc5
{[%clk 0:00:18.6]} 24. Re4 {[%clk 0:00:54.4]} 24... Rxe4 {[%clk 0:00:16]} 25.
Qxe4 {[%clk 0:00:51.6]} 25... Bc6 {[%clk 0:00:12.8]} 26. Qh4 {[%clk 0:00:45.5]}
26... Qd6 {[%clk 0:00:08.5]} 27. Ne4 {[%clk 0:00:44.6]} 27... Qe7 {[%clk
0:00:07.3]} 28. Nxc5 {[%clk 0:00:42.3]} 28... Qxc5 {[%clk 0:00:07.6]} 29. Bxd5
{[%clk 0:00:38.4]} 29... Qxd5 {[%clk 0:00:07.7]} 30. Qxf6+ {[%clk 0:00:38.8]}
30... Kg8 {[%clk 0:00:08.3]} 31. f3 {[%clk 0:00:34.5]} 31... Qf5 {[%clk
0:00:04.5]} 32. Qd8+ {[%clk 0:00:32]} 32... Kf7 {[%clk 0:00:04.2]} 33. Qxc7+
{[%clk 0:00:31.9]} 33... Qd7 {[%clk 0:00:05]} 34. Qf4+ {[%clk 0:00:26.1]} 1-0

[Event "*** Titled Tuesday Blitz"]
[Site "Chess.com"]
[Date "2020.04.28"]
[Round "1"]
[White "Noam_Vitenberg"]
[Black "Morshynska"]
[Result "1-0"]
[WhiteElo "2502"]
[BlackElo "2074"]
[TimeControl "180+1"]
[EndTime "10:07:08 PDT"]
[Termination "Noam_Vitenberg won on time"]

1. d4 {[%clk 0:02:57.1]} 1... d5 {[%clk 0:02:59.7]} 2. c4 {[%clk 0:02:56.2]}
2... c6 {[%clk 0:02:59.5]} 3. Nf3 {[%clk 0:02:53.9]} 3... Nf6 {[%clk 0:02:59]}
4. e3 {[%clk 0:02:51.3]} 4... e6 {[%clk 0:02:57.3]} 5. Nbd2 {[%clk 0:02:43.8]}
5... c5 {[%clk 0:02:55.7]} 6. cxd5 {[%clk 0:02:35.6]} 6... exd5 {[%clk
0:02:51.3]} 7. Bb5+ {[%clk 0:02:28.1]} 7... Nc6 {[%clk 0:02:42.8]} 8. O-O {[%clk
0:02:27.2]} 8... a6 {[%clk 0:02:36.5]} 9. Be2 {[%clk 0:02:21.5]} 9... cxd4
{[%clk 0:02:31.5]} 10. exd4 {[%clk 0:02:19.1]} 10... Bd6 {[%clk 0:02:29.9]} 11.
Nb3 {[%clk 0:02:18.5]} 11... O-O {[%clk 0:02:27.7]} 12. Bg5 {[%clk 0:02:10.6]}
12... h6 {[%clk 0:02:27.2]} 13. Bh4 {[%clk 0:02:10.4]} 13... Bg4 {[%clk
0:02:18.9]} 14. Nc5 {[%clk 0:02:02.3]} 14... Qc7 {[%clk 0:02:10.1]} 15. Bxf6
{[%clk 0:01:39.9]} 15... gxf6 {[%clk 0:01:48.1]} 16. h3 {[%clk 0:01:38.7]} 16...
Be6 {[%clk 0:01:23.3]} 17. Rc1 {[%clk 0:01:33.7]} 17... Rac8 {[%clk 0:01:17.2]}
18. Qd3 {[%clk 0:01:22.7]} 18... Qe7 {[%clk 0:00:52.5]} 19. Nh4 {[%clk
0:01:14.1]} 19... Nxd4 {[%clk 0:00:37.5]} 20. Qxd4 {[%clk 0:01:08.3]} 20... Rxc5
{[%clk 0:00:30.9]} 21. Rxc5 {[%clk 0:01:03.9]} 21... Bxc5 {[%clk 0:00:31.8]} 22.
Qf4 {[%clk 0:01:03.5]} 22... Kg7 {[%clk 0:00:28.7]} 23. Bd3 {[%clk 0:00:57.1]}
23... Rc8 {[%clk 0:00:18.2]} 24. Nf5+ {[%clk 0:00:53.5]} 24... Bxf5 {[%clk
0:00:17.6]} 25. Qxf5 {[%clk 0:00:54.4]} 25... Qe6 {[%clk 0:00:11.9]} 26. Qh7+
{[%clk 0:00:47.4]} 26... Kf8 {[%clk 0:00:12]} 27. Bf5 {[%clk 0:00:47.3]} 27...
Qe5 {[%clk 0:00:06.4]} 28. Bxc8 {[%clk 0:00:33.3]} 28... Bd6 {[%clk 0:00:07.3]}
29. Qxh6+ {[%clk 0:00:30.2]} 29... Ke7 {[%clk 0:00:06.2]} 30. g3 {[%clk
0:00:30.6]} 30... Bc5 {[%clk 0:00:04.8]} 31. Qf4 {[%clk 0:00:25.8]} 31... Qe2
{[%clk 0:00:03.6]} 32. Bg4 {[%clk 0:00:23.7]} 32... Qc2 {[%clk 0:00:01.3]} 33.
Qf5 {[%clk 0:00:21.4]} 1-0

[Event "*** Titled Tuesday Blitz"]
[Site "Chess.com"]
[Date "2020.04.28"]
[Round "1"]
[White "WeAintSurePal"]
[Black "JakubPulpan"]
[Result "0-1"]
[WhiteElo "2383"]
[BlackElo "2722"]
[TimeControl "180+1"]
[EndTime "10:07:09 PDT"]
[Termination "JakubPulpan won by resignation"]

1. d4 {[%clk 0:03:00.4]} 1... Nf6 {[%clk 0:02:58]} 2. Nf3 {[%clk 0:02:59.7]}
2... d5 {[%clk 0:02:52.4]} 3. c3 {[%clk 0:02:56.4]} 3... Bf5 {[%clk 0:02:40.2]}
4. Bf4 {[%clk 0:02:53.5]} 4... c6 {[%clk 0:02:17]} 5. Nbd2 {[%clk 0:02:52.3]}
5... h6 {[%clk 0:02:13.7]} 6. h3 {[%clk 0:02:51.7]} 6... e6 {[%clk 0:02:13.3]}
7. e3 {[%clk 0:02:51.5]} 7... Bd6 {[%clk 0:02:10.9]} 8. Ne5 {[%clk 0:02:51.5]}
8... Qc7 {[%clk 0:02:05.7]} 9. Be2 {[%clk 0:02:47.2]} 9... Nbd7 {[%clk
0:01:59.2]} 10. Nxd7 {[%clk 0:02:43.3]} 10... Nxd7 {[%clk 0:01:58.2]} 11. Bxd6
{[%clk 0:02:42.5]} 11... Qxd6 {[%clk 0:01:58.3]} 12. O-O {[%clk 0:02:42]} 12...
e5 {[%clk 0:01:50.1]} 13. Bg4 {[%clk 0:02:37.2]} 13... Be6 {[%clk 0:01:19.7]}
14. Bxe6 {[%clk 0:02:32.1]} 14... Qxe6 {[%clk 0:01:19.9]} 15. dxe5 {[%clk
0:02:27.5]} 15... Nxe5 {[%clk 0:01:18.4]} 16. Nf3 {[%clk 0:02:21.7]} 16... O-O-O
{[%clk 0:01:15.4]} 17. Nxe5 {[%clk 0:02:20.8]} 17... Qxe5 {[%clk 0:01:16.3]} 18.
Qd4 {[%clk 0:02:18.4]} 18... Qxd4 {[%clk 0:01:16.4]} 19. cxd4 {[%clk 0:02:18.8]}
19... f5 {[%clk 0:01:16]} 20. b4 {[%clk 0:02:16.6]} 20... Rhe8 {[%clk 0:01:13]}
21. a4 {[%clk 0:02:15.3]} 21... f4 {[%clk 0:01:13.4]} 22. Rfe1 {[%clk
0:02:12.6]} 22... fxe3 {[%clk 0:01:13.5]} 23. Rxe3 {[%clk 0:02:10.4]} 23... Kd7
{[%clk 0:01:09.3]} 24. b5 {[%clk 0:02:07.6]} 24... Kd6 {[%clk 0:01:04.5]} 25.
Rb1 {[%clk 0:01:57]} 25... c5 {[%clk 0:01:02.8]} 26. dxc5+ {[%clk 0:01:54.2]}
26... Kxc5 {[%clk 0:01:03.7]} 27. Rc3+ {[%clk 0:01:46.6]} 27... Kd6 {[%clk
0:00:59.8]} 28. a5 {[%clk 0:01:41.7]} 28... Rc8 {[%clk 0:00:59]} 29. Rg3 {[%clk
0:01:37.7]} 29... g5 {[%clk 0:00:46.6]} 30. Rf3 {[%clk 0:01:31.9]} 30... Rf8
{[%clk 0:00:43.9]} 31. Rd3 {[%clk 0:01:26]} 31... Rc5 {[%clk 0:00:42.2]} 32. b6
{[%clk 0:01:23.6]} 32... a6 {[%clk 0:00:41]} 33. Ra1 {[%clk 0:01:21.2]} 33...
Rfc8 {[%clk 0:00:37.5]} 34. Ra4 {[%clk 0:01:19.2]} 34... Rc4 {[%clk 0:00:35.8]}
35. Raa3 {[%clk 0:01:18]} 35... R8c5 {[%clk 0:00:32.1]} 36. Kh2 {[%clk
0:01:17.6]} 36... d4 {[%clk 0:00:30.5]} 37. Kg3 {[%clk 0:01:14.2]} 37... Rc3
{[%clk 0:00:29.7]} 38. Kf3 {[%clk 0:01:06.3]} 38... Rxd3+ {[%clk 0:00:24.9]} 39.
Rxd3 {[%clk 0:01:04.7]} 39... Kd5 {[%clk 0:00:25.8]} 40. Kg4 {[%clk 0:01:00.7]}
40... Kc4 {[%clk 0:00:21.7]} 41. Rd1 {[%clk 0:00:59.2]} 41... d3 {[%clk
0:00:22]} 42. h4 {[%clk 0:00:58.5]} 42... Rxa5 {[%clk 0:00:18.2]} 43. hxg5
{[%clk 0:00:41.8]} 43... hxg5 {[%clk 0:00:18.7]} 44. Rc1+ {[%clk 0:00:39]} 44...
Kb3 {[%clk 0:00:15.6]} 45. Rc7 {[%clk 0:00:36.9]} 45... Rd5 {[%clk 0:00:15]} 0-1

[Event "*** Titled Tuesday Blitz"]
[Site "Chess.com"]
[Date "2020.04.28"]
[Round "1"]
[White "Vusatiuk_Vladimir"]
[Black "swayamsm"]
[Result "0-1"]
[WhiteElo "2347"]
[BlackElo "2681"]
[TimeControl "180+1"]
[EndTime "10:07:09 PDT"]
[Termination "swayamsm won by checkmate"]

1. e4 {[%clk 0:03:00.9]} 1... e6 {[%clk 0:02:56.2]} 2. d4 {[%clk 0:02:58.1]}
2... d5 {[%clk 0:02:50.8]} 3. Nd2 {[%clk 0:02:58.4]} 3... Be7 {[%clk 0:02:44.5]}
4. Bd3 {[%clk 0:02:55.3]} 4... c5 {[%clk 0:02:36.5]} 5. dxc5 {[%clk 0:02:49.9]}
5... Nf6 {[%clk 0:02:28.8]} 6. exd5 {[%clk 0:02:42.8]} 6... Qxd5 {[%clk
0:02:25]} 7. Ngf3 {[%clk 0:02:40.3]} 7... Nbd7 {[%clk 0:02:21.1]} 8. Nb3 {[%clk
0:02:33.5]} 8... Nxc5 {[%clk 0:02:18.5]} 9. Nxc5 {[%clk 0:02:34]} 9... Qxc5
{[%clk 0:02:15.6]} 10. O-O {[%clk 0:02:32.7]} 10... Bd7 {[%clk 0:02:13.5]} 11.
Be3 {[%clk 0:02:32.7]} 11... Qc7 {[%clk 0:02:06.6]} 12. Nd4 {[%clk 0:02:27.2]}
12... O-O {[%clk 0:02:03.4]} 13. c4 {[%clk 0:02:20.4]} 13... Rfd8 {[%clk
0:01:53.8]} 14. Qe2 {[%clk 0:02:18.9]} 14... Rac8 {[%clk 0:01:46.6]} 15. Rac1
{[%clk 0:02:17.1]} 15... Bd6 {[%clk 0:01:43.1]} 16. h3 {[%clk 0:02:14.3]} 16...
Be5 {[%clk 0:01:38.2]} 17. Rfd1 {[%clk 0:02:10.2]} 17... Qb8 {[%clk 0:01:29.3]}
18. Bb1 {[%clk 0:01:56.1]} 18... a6 {[%clk 0:01:18.9]} 19. Nf3 {[%clk
0:01:41.3]} 19... Bd6 {[%clk 0:01:15.6]} 20. Bg5 {[%clk 0:01:41]} 20... Be7
{[%clk 0:01:14.6]} 21. Ne5 {[%clk 0:01:38.1]} 21... Be8 {[%clk 0:01:11.6]} 22.
Bf4 {[%clk 0:01:21]} 22... Bd6 {[%clk 0:00:54.4]} 23. c5 {[%clk 0:01:13]} 23...
Rxc5 {[%clk 0:00:46.3]} 24. Rxc5 {[%clk 0:01:09]} 24... Bxc5 {[%clk 0:00:47.2]}
25. Rxd8 {[%clk 0:00:42.4]} 25... Qxd8 {[%clk 0:00:45.7]} 26. Qc2 {[%clk
0:00:43.3]} 26... Bd4 {[%clk 0:00:36.7]} 27. g4 {[%clk 0:00:41.9]} 27... h6
{[%clk 0:00:34.7]} 28. g5 {[%clk 0:00:40.4]} 28... hxg5 {[%clk 0:00:32.4]} 29.
Bg3 {[%clk 0:00:40.1]} 29... Qd5 {[%clk 0:00:23]} 30. Ng4 {[%clk 0:00:37.4]}
30... Bc6 {[%clk 0:00:20.7]} 31. Nxf6+ {[%clk 0:00:35.5]} 31... gxf6 {[%clk
0:00:21.4]} 32. Qh7+ {[%clk 0:00:29.7]} 32... Kf8 {[%clk 0:00:21.8]} 33. Kf1
{[%clk 0:00:29.4]} 33... Bb5+ {[%clk 0:00:16.2]} 34. Ke1 {[%clk 0:00:21]} 34...
Bxb2 {[%clk 0:00:15.7]} 35. Qh8+ {[%clk 0:00:17.9]} 35... Ke7 {[%clk 0:00:15.8]}
36. Qb8 {[%clk 0:00:14.4]} 36... Bc3# {[%clk 0:00:15.4]} 0-1